bitfinex-derivatives/quotes_BNBF0:USTF0_20250326
["timestamp","ask_amount","ask_price","bid_price","bid_amount"]
[1742977690514,1.19137024,632.22,631.92,1.18127764]
[1742977690716,1.19137024,632.21,631.92,1.18127764]
[1742977690916,0.434,632.24,631.92,1.18127764]
[1742977691119,1.19154224,632.23,631.92,1.18127764]
[1742977691419,1.19167543,632.22,631.94,1.18127764]
[1742977691618,1.19167543,632.21,631.94,1.18127764]
[1742977691816,1.19167543,632.2,631.94,1.18127764]
[1742977692013,0.434,632.24,631.94,1.18127764]
[1742977692213,1.1916394,632.23,631.94,1.18127764]
[1742977692414,1.1916394,632.22,631.94,1.18127764]
[1742977692618,1.1916394,632.21,631.94,1.18127764]
[1742977692819,1.1916394,632.2,631.94,1.18127764]
[1742977693016,0.434,632.24,631.94,1.18127764]
[1742977693220,1.19181193,632.23,631.94,1.18127764]
[1742977693421,1.19181193,632.22,631.94,1.18127764]
[1742977693623,1.19181193,632.21,631.94,1.18127764]
[1742977693819,1.19181193,632.2,631.94,1.18127764]
[1742977694025,1.19181193,632.19,631.97,1.18127764]
[1742977694224,0.434,632.24,631.97,1.18127764]
[1742977694525,1.19199432,632.23,631.97,1.18127764]
[1742977694820,1.19199432,632.22,631.97,1.18127764]
[1742977695020,0.434,632.24,631.97,1.18127764]
[1742977695021,1.19199432,632.21,631.97,1.18127764]
[1742977695328,1.19199432,632.2,631.97,1.18127764]
[1742977695521,1.19199432,632.19,631.97,1.18127764]
[1742977695725,0.434,632.24,631.97,1.18127764]
[1742977695925,1.19189429,632.23,631.97,1.18127764]
[1742977696125,1.19189429,632.22,631.97,1.18127764]
[1742977696319,1.19189429,632.21,631.97,1.18127764]
[1742977696525,1.19189429,632.2,631.97,1.18127764]
[1742977696723,1.19189429,632.19,632.07,1.18127764]
[1742977696925,1.19189429,632.18,632.07,1.18127764]
[1742977697119,1.19189429,632.17,632.07,1.18127764]
[1742977697322,0.434,632.24,632.07,1.18127764]
[1742977697521,1.19178897,632.23,632.07,1.18127764]
[1742977697721,1.19178897,632.22,632.07,1.18127764]
[1742977698120,1.19178897,632.21,632.07,1.18127764]
[1742977698323,1.19178897,632.2,632.07,1.18127764]
[1742977698528,1.19178897,632.19,632.07,1.18127764]
[1742977698720,1.19178897,632.18,632.07,1.18127764]
[1742977698920,1.19178897,632.17,632.07,1.18127764]
[1742977699222,0.434,632.24,632.09,1.18127764]
[1742977699425,1.19157682,632.23,632.09,1.18127764]
[1742977699619,1.19157682,632.22,632.09,1.18127764]
[1742977699819,1.19157682,632.21,632.09,1.18127764]
[1742977700024,1.19157682,632.2,632.09,1.18127764]
[1742977700223,1.19157682,632.19,632.09,1.18127764]
[1742977700523,1.19157682,632.18,632.09,1.18127764]
[1742977700722,0.434,632.24,632.09,1.18127764]
[1742977701024,1.19159364,632.23,632.09,1.18127764]
[1742977701219,1.19159364,632.22,632.09,1.18127764]
[1742977701423,1.024,632.32,632.12,1.18127764]
[1742977701424,1.19159364,632.21,632.12,1.18127764]
[1742977701624,1.19159364,632.2,632.12,1.18127764]
[1742977701826,1.19159364,632.19,632.12,1.18127764]
[1742977702119,1.19159364,632.18,632.12,1.18127764]
[1742977702325,1.024,632.32,632.12,1.18127764]
[1742977702527,1.19138091,632.31,632.12,1.18127764]
[1742977702726,1.19138091,632.3,632.12,1.18127764]
[1742977702927,1.19138091,632.29,632.12,1.18127764]
[1742977703128,1.19138091,632.28,632.12,1.18127764]
[1742977703328,1.19138091,632.27,632.12,1.18127764]
[1742977703529,1.19138091,632.26,631.98,1.18127764]
[1742977703723,1.19138091,632.25,631.98,1.18127764]
[1742977703929,1.19138091,632.24,631.98,1.18127764]
[1742977704223,1.19138091,632.23,631.98,1.18127764]
[1742977704423,1.19138091,632.22,631.98,1.18127764]
[1742977704626,1.19138091,632.21,631.98,1.18127764]
[1742977704826,1.19138091,632.2,631.98,1.18127764]
[1742977705028,1.024,632.32,631.98,1.18127764]
[1742977705224,1.19141128,632.31,631.98,1.18127764]
[1742977705427,1.19141128,632.3,631.98,1.18127764]
[1742977705624,1.19141128,632.29,631.99,1.18127764]
[1742977705827,1.024,632.32,631.99,1.18127764]
[1742977705828,1.19141128,632.28,631.99,1.18127764]
[1742977706028,1.19141128,632.27,631.99,1.18127764]
[1742977706222,1.19141128,632.26,631.99,1.18127764]
[1742977706530,1.19141128,632.25,631.99,1.18127764]
[1742977706728,1.19141128,632.24,631.99,1.18127764]
[1742977707330,1.024,632.32,631.99,1.18127764]
[1742977708031,1.024,632.32,631.97,1.18127764]
[1742977709128,1.024,632.32,631.96,1.18127764]
[1742977713036,1.024,632.32,631.69,1.17977798]
[1742977713037,1.024,632.32,632.03,1.18127764]
[1742977713433,0.433,632.44,632.03,1.18127764]
[1742977715240,0.433,632.44,632.01,1.18127764]
[1742977717043,1.231,632.44,632.01,1.18127764]
[1742977717847,1.231,632.44,632.06,1.18127764]
[1742977719847,1.231,632.44,631.97,1.18127764]
[1742977722148,1.231,632.44,631.86,1.18127764]
[1742977724051,1.231,632.44,631.85,1.18127764]
[1742977727049,1.231,632.44,631.84,1.18127764]
[1742977728954,1.231,632.44,631.85,1.18127764]
[1742977731151,1.231,632.44,631.95,1.18127764]
[1742977732558,1.231,632.44,632.03,1.18127764]
[1742977735160,1.231,632.44,632.08,1.18127764]
[1742977737761,1.231,632.44,632.11,1.18127764]
[1742977739557,1.231,632.44,632.02,1.18127764]
[1742977742265,1.231,632.44,632.01,1.18127764]
[1742977744067,1.231,632.44,632.02,1.18127764]
[1742977746967,1.231,632.44,631.97,1.18127764]
[1742977752875,1.231,632.44,631.98,1.18127764]
[1742977755576,1.231,632.44,632.04,1.18127764]
[1742977757474,1.231,632.44,632.0,1.18127764]
[1742977762281,1.231,632.44,632.01,1.18127764]
[1742977764280,1.231,632.44,632.02,1.18127764]
[1742977772085,1.231,632.44,632.17,1.18127764]
[1742977772383,0.27523262,632.59,632.17,1.18127764]
[1742977774785,0.31607061,632.77,632.17,1.18127764]
[1742977774986,0.849,632.58,632.01,1.18127764]
[1742977776085,1.282,632.58,632.01,1.18127764]
[1742977780189,1.282,632.58,631.97,1.18127764]
[1742977783091,1.282,632.58,632.01,1.18127764]
[1742977785489,1.282,632.58,632.03,1.18127764]
[1742977787090,1.282,632.58,632.06,1.18127764]
[1742977789400,1.282,632.58,632.11,1.18127764]
[1742977791502,1.282,632.58,632.08,1.18127764]
[1742977793607,1.282,632.58,632.04,1.18127764]
[1742977795111,1.282,632.58,631.86,1.18127764]
[1742977796110,1.282,632.58,631.87,0.26512191]
[1742977797011,1.282,632.58,631.93,1.18127764]
[1742977798606,1.282,632.58,632.01,1.18127764]
[1742977801110,1.282,632.58,632.02,0.26512525]
[1742977801507,1.282,632.58,632.03,0.2651267]
[1742977801706,1.282,632.58,632.02,0.2651267]
[1742977801905,1.282,632.58,632.03,0.2651267]
[1742977802111,1.282,632.58,632.0,0.2651267]
[1742977802305,1.282,632.58,632.01,0.2651267]
[1742977802505,1.282,632.58,631.99,1.18127764]
[1742977805916,1.282,632.58,632.01,1.18127764]
[1742977809415,1.282,632.58,631.97,1.18127764]
[1742977811915,1.282,632.58,631.95,1.18127764]
[1742977814117,1.282,632.58,631.73,1.18127764]
[1742977818518,1.282,632.58,631.74,0.26506805]
[1742977818719,1.282,632.58,631.84,1.18127764]
[1742977820622,1.282,632.58,631.88,1.18127764]
[1742977820921,1.282,632.58,631.89,0.26507607]
[1742977822619,1.282,632.58,632.03,1.18127764]
[1742977826529,1.282,632.58,631.97,1.18127764]
[1742977829132,1.282,632.58,632.0,1.18127764]
[1742977831534,1.282,632.58,632.01,0.26510063]
[1742977832032,1.282,632.58,632.02,0.26510063]
[1742977832334,1.282,632.58,632.03,0.26510063]
[1742977832531,1.282,632.58,632.04,0.26510063]
[1742977832832,1.282,632.58,631.99,1.18127764]
[1742977833133,1.282,632.58,632.0,0.26510051]
[1742977833733,1.282,632.58,631.99,1.18127764]
[1742977833938,1.282,632.58,632.17,1.18127764]
[1742977836135,1.282,632.58,632.21,1.18127764]
[1742977838132,1.282,632.58,632.22,1.18127764]
[1742977841135,1.282,632.58,632.2,1.18127764]
[1742977843232,1.282,632.58,631.74,1.00800327]
[1742977843233,1.282,632.58,632.17,1.18127764]
[1742977845239,1.282,632.58,632.19,1.18127764]
[1742977852541,1.282,632.58,631.77,1.00800327]
[1742977852542,1.282,632.58,632.21,1.18127764]
[1742977854943,1.282,632.58,632.19,1.18127764]
[1742977860944,1.282,632.58,632.22,1.18127764]
[1742977863044,1.282,632.58,632.24,1.18127764]
[1742977867347,1.282,632.58,632.22,1.18127764]
[1742977869647,1.282,632.58,632.27,1.18127764]
[1742977870047,0.31607061,632.77,632.27,1.18127764]
[1742977872854,1.542,632.76,632.29,1.18127764]
[1742977876662,1.542,632.76,632.31,1.18127764]
[1742977879061,1.542,632.76,632.24,1.18127764]
[1742977883268,1.542,632.76,632.22,1.18127764]
[1742977885970,1.542,632.76,632.25,1.18127764]
[1742977888773,1.542,632.76,632.22,1.18127764]
[1742977889877,1.109,632.76,632.22,1.18127764]
[1742977890870,1.109,632.76,632.2,1.18127764]
[1742977893576,1.109,632.76,632.25,1.18127764]
[1742977893770,0.434,632.75,632.25,1.18127764]
[1742977895976,0.434,632.75,632.3,1.18127764]
[1742977898477,0.434,632.75,632.26,1.18127764]
[1742977900882,0.434,632.75,632.32,1.18127764]
[1742977903386,0.718,632.74,632.32,1.18127764]
[1742977903988,0.718,632.74,632.31,1.18127764]
[1742977906291,0.718,632.74,632.29,1.18127764]
[1742977909995,0.434,632.73,632.29,1.18127764]
[1742977911189,0.434,632.73,632.26,1.18127764]
[1742977914097,0.434,632.73,632.22,1.18127764]
[1742977918905,0.434,632.73,632.28,1.18127764]
[1742977922901,0.27507272,632.95,632.28,1.18127764]
[1742977923105,0.31598571,632.94,632.28,1.18127764]
[1742977923310,0.31598571,632.94,631.85,1.28307599]
[1742977923311,0.31598571,632.94,632.32,1.18127764]
[1742977924310,1.09498571,632.94,632.32,1.18127764]
[1742977926504,1.52898571,632.94,632.32,1.18127764]
[1742977926704,1.52898571,632.94,631.85,1.28307599]
[1742977926705,1.52898571,632.94,632.27,1.18127764]
[1742977929518,1.52898571,632.94,632.3,1.18127764]
[1742977934120,1.52898571,632.94,632.33,1.18127764]
[1742977937619,1.52898571,632.94,632.3,1.18127764]
[1742977940126,1.52898571,632.94,632.28,1.18127764]
[1742977941726,1.52898571,632.94,632.29,0.26496343]
[1742977942327,1.52898571,632.94,632.29,1.44624107]
[1742977942526,1.52898571,632.94,632.3,0.26496343]
[1742977942721,1.52898571,632.94,632.31,0.26496214]
[1742977943023,1.52898571,632.94,632.32,0.26496214]
[1742977943226,1.52898571,632.94,632.33,0.26496214]
[1742977943627,1.52898571,632.94,632.29,1.18127764]
[1742977944528,1.52898571,632.94,632.42,1.18127764]
[1742977947026,1.52898571,632.94,631.95,1.41573358]
[1742977947027,1.52898571,632.94,632.3,1.18127764]
[1742977949431,1.52898571,632.94,632.18,1.18127764]
[1742977951833,1.19141458,632.31,632.18,1.18127764]
[1742977952133,1.52898571,632.94,624.28,9.47856115]
[1742977952134,1.19141458,632.93,632.19,1.18127764]
[1742977952333,1.19141458,632.92,632.19,1.18127764]
[1742977952633,1.19141458,632.91,632.19,1.18127764]
[1742977952834,1.19141458,632.9,632.19,1.18127764]
[1742977953137,1.19141458,632.89,632.19,1.18127764]
[1742977953433,1.19141458,632.88,632.19,1.18127764]
[1742977953632,1.19141458,632.87,632.19,1.18127764]
[1742977953932,1.19141458,632.86,632.2,1.18127764]
[1742977954133,1.19141458,632.85,632.2,1.18127764]
[1742977954336,1.19141458,632.84,632.2,1.18127764]
[1742977954535,1.19141458,632.83,632.21,0.26495158]
[1742977954729,1.19141458,632.82,632.21,0.26495158]
[1742977954928,1.19141458,632.81,632.21,0.26495158]
[1742977955130,1.19141458,632.8,632.21,0.26495158]
[1742977955332,1.19141458,632.79,632.21,0.26495158]
[1742977955529,0.881,632.79,632.21,0.26495158]
[1742977955835,0.434,632.78,632.39,1.18127764]
[1742977957630,0.434,632.78,632.4,0.26495154]
[1742977957936,0.434,632.78,632.45,1.18127764]
[1742977959335,0.434,632.78,632.53,1.18127764]
[1742977961934,0.434,632.78,632.07,0.27501511]
[1742977961935,0.434,632.78,632.54,1.18127764]
[1742977963938,0.434,632.78,632.53,1.18127764]
[1742977966637,0.434,632.78,632.56,1.18127764]
[1742977969338,0.434,632.78,632.63,1.18127764]
[1742977972142,0.434,632.78,632.56,1.18127764]
[1742977974039,0.434,632.78,632.54,1.18127764]
[1742977974740,0.31598571,632.94,632.54,1.18127764]
[1742977974945,1.18819455,632.93,632.54,1.18127764]
[1742977975146,1.18819455,632.92,632.54,1.18127764]
[1742977975345,1.18819455,632.91,632.54,1.18127764]
[1742977975547,1.18819455,632.9,632.54,1.18127764]
[1742977975741,1.18819455,632.89,632.54,1.18127764]
[1742977976041,1.18819455,632.88,632.54,1.18127764]
[1742977976248,1.18819455,632.87,632.54,1.18127764]
[1742977976447,1.18819455,632.86,632.55,1.18127764]
[1742977976748,1.18819455,632.85,632.55,1.18127764]
[1742977976950,1.15298571,632.94,632.55,1.18127764]
[1742977977149,1.18831682,632.93,632.55,1.18127764]
[1742977977348,1.18831682,632.92,632.55,1.18127764]
[1742977977648,1.18831682,632.91,632.55,1.18127764]
[1742977977849,1.18831682,632.9,632.55,1.18127764]
[1742977978144,1.18831682,632.89,632.55,1.18127764]
[1742977978348,1.18831682,632.88,632.55,1.18127764]
[1742977978545,1.18831682,632.87,632.55,1.18127764]
[1742977978749,1.18831682,632.86,632.56,1.18127764]
[1742977978949,1.18831682,632.85,632.56,1.18127764]
[1742977979247,1.18831682,632.84,632.56,1.18127764]
[1742977979448,0.434,632.87,632.56,1.18127764]
[1742977979645,1.18834508,632.86,632.56,1.18127764]
[1742977979847,1.18834508,632.85,632.56,1.18127764]
[1742977980048,0.434,632.87,632.56,1.18127764]
[1742977980249,1.18837816,632.86,632.56,1.18127764]
[1742977980549,1.18837816,632.85,632.55,1.18127764]
[1742977980746,1.18837816,632.84,632.55,1.18127764]
[1742977981048,0.434,632.87,632.55,1.18127764]
[1742977981253,1.18831672,632.86,632.55,1.18127764]
[1742977981455,1.18831672,632.85,632.55,1.18127764]
[1742977981655,1.18831672,632.84,632.55,1.18127764]
[1742977981855,0.434,632.87,632.55,1.18127764]
[1742977982056,1.18845195,632.86,632.55,1.18127764]
[1742977982257,1.18845195,632.85,632.55,1.18127764]
[1742977982459,1.18854886,632.84,632.55,1.18127764]
[1742977982756,1.18854886,632.84,632.11,0.27499881]
[1742977982757,0.434,632.87,632.6,1.18127764]
[1742977982958,1.18857937,632.86,632.6,1.18127764]
[1742977983160,1.18857937,632.85,632.6,1.18127764]
[1742977983360,0.434,632.87,632.6,1.18127764]
[1742977983658,1.18869702,632.86,632.6,1.18127764]
[1742977983954,0.434,632.87,632.6,1.18127764]
[1742977984154,1.18872163,632.86,632.6,1.18127764]
[1742977984359,1.1888368,632.85,632.6,1.18127764]
[1742977984560,0.434,632.87,632.6,1.18127764]
[1742977984755,1.18886659,632.86,632.6,1.18127764]
[1742977984961,0.434,632.87,632.6,1.18127764]
[1742977985159,1.18886263,632.86,632.6,1.18127764]
[1742977985359,0.434,632.87,632.6,1.18127764]
[1742977985554,1.18885833,632.86,632.57,1.18127764]
[1742977985753,0.434,632.87,632.57,1.18127764]
[1742977985959,1.18888299,632.86,632.57,1.18127764]
[1742977986261,0.434,632.87,632.57,1.18127764]
[1742977986459,1.18896468,632.86,632.57,1.18127764]
[1742977986659,0.434,632.87,632.57,1.18127764]
[1742977986660,1.18896468,632.85,632.57,1.18127764]
[1742977986855,0.434,632.87,632.57,1.18127764]
[1742977987060,1.18895335,632.86,632.57,1.18127764]
[1742977987262,1.18895335,632.85,632.57,1.18127764]
[1742977987457,0.434,632.87,632.57,1.18127764]
[1742977987657,1.1890654,632.86,632.57,1.18127764]
[1742977987859,0.434,632.87,632.57,1.18127764]
[1742977988054,1.18905623,632.86,632.57,1.18127764]
[1742977988254,0.434,632.87,632.57,1.18127764]
[1742977988455,1.18913964,632.86,632.57,1.18127764]
[1742977988662,0.434,632.87,632.57,1.18127764]
[1742977988857,1.18913985,632.86,632.57,1.18127764]
[1742977989057,0.434,632.87,632.57,1.18127764]
[1742977989255,1.18914049,632.86,632.57,1.18127764]
[1742977989558,0.434,632.87,632.57,1.18127764]
[1742977989865,1.18922852,632.86,632.57,1.18127764]
[1742977990161,0.434,632.87,632.57,1.18127764]
[1742977992359,0.434,632.87,632.64,1.18127764]
[1742977994363,0.434,632.87,632.35,1.17977798]
[1742977994364,0.434,632.87,632.6,1.18127764]
[1742977996560,0.4264095,632.87,632.6,1.18127764]
[1742977996759,0.837,632.94,632.6,1.18127764]
[1742977997254,1.18921515,632.93,632.6,1.18127764]
[1742977997460,0.837,632.94,632.6,1.18127764]
[1742977997660,0.27497709,633.28,632.6,1.18127764]
[1742977997959,1.18919263,633.27,632.6,1.18127764]
[1742977998156,1.18919263,633.26,632.6,1.18127764]
[1742977998363,1.18919263,633.25,632.6,1.18127764]
[1742977998556,1.18919263,633.24,632.6,1.18127764]
[1742977998756,1.18919263,633.23,632.6,1.18127764]
[1742977998961,1.18919263,633.22,632.6,1.18127764]
[1742977999164,1.18919263,633.21,632.3,1.18127764]
[1742977999358,1.18919263,633.2,632.3,1.18127764]
[1742977999562,1.18919263,633.19,632.3,1.18127764]
[1742977999760,1.18919263,633.18,632.3,1.18127764]
[1742977999960,1.18919263,633.17,632.3,1.18127764]
[1742978000160,1.18919263,633.16,632.3,1.18127764]
[1742978000361,1.18919263,633.15,632.3,1.18127764]
[1742978000562,1.18919263,633.14,632.3,1.18127764]
[1742978000764,1.18919263,633.13,632.31,0.26450518]
[1742978001062,1.18919263,633.12,632.31,0.26450518]
[1742978001265,1.18919263,633.11,632.31,0.26450518]
[1742978001564,1.18919263,633.1,632.36,1.18127764]
[1742978001761,1.18919263,633.09,632.37,0.26450518]
[1742978001958,1.18919263,633.08,632.37,0.26450518]
[1742978002162,1.18919263,633.07,632.37,0.26450518]
[1742978002358,1.18919263,633.06,632.37,0.26450518]
[1742978002562,1.18919263,633.05,632.37,0.26450518]
[1742978002758,1.18919263,633.04,632.37,0.26450518]
[1742978002960,1.18919263,633.03,632.37,0.26450518]
[1742978003159,1.18919263,633.02,632.37,0.26450518]
[1742978003358,1.18919263,633.01,632.65,1.18127764]
[1742978003660,1.18919263,633.0,632.65,1.18127764]
[1742978003859,1.18919263,632.99,632.65,1.18127764]
[1742978004158,1.18919263,632.98,632.65,1.18127764]
[1742978004464,0.852,633.17,632.65,1.18127764]
[1742978004765,1.1887329,633.16,632.65,1.18127764]
[1742978004962,1.1887329,633.15,632.65,1.18127764]
[1742978005163,1.1887329,633.14,632.65,1.18127764]
[1742978005361,1.1887613,633.13,632.69,1.18127764]
[1742978005565,1.1887613,633.12,632.69,1.18127764]
[1742978005761,1.1887613,633.11,632.69,1.18127764]
[1742978005964,1.1887613,633.1,632.69,1.18127764]
[1742978006162,1.1887613,633.09,632.69,1.18127764]
[1742978006364,1.1887613,633.08,632.69,1.18127764]
[1742978006564,1.1887613,633.07,632.69,1.18127764]
[1742978006868,0.852,633.17,632.69,1.18127764]
[1742978006869,1.1887613,633.06,632.69,1.18127764]
[1742978007067,1.1887613,633.05,632.69,1.18127764]
[1742978007369,1.1887613,633.04,632.69,1.18127764]
[1742978007568,1.1887613,633.03,632.69,1.18127764]
[1742978007769,1.1887613,633.02,632.69,1.18127764]
[1742978007970,1.1887613,633.01,632.58,1.18127764]
[1742978008165,1.1887613,633.0,632.58,1.18127764]
[1742978008469,0.852,633.17,632.58,1.18127764]
[1742978008770,1.18840642,633.16,632.58,1.18127764]
[1742978009068,1.18840642,633.15,632.58,1.18127764]
[1742978009269,1.18840642,633.14,632.58,1.18127764]
[1742978009470,1.18840642,633.13,632.58,1.18127764]
[1742978009769,1.18840642,633.12,632.58,1.18127764]
[1742978009970,1.18840642,633.11,632.58,1.18127764]
[1742978010170,1.18840642,633.1,632.58,1.18127764]
[1742978010371,1.18840642,633.09,632.58,1.18127764]
[1742978010671,1.18840642,633.08,632.59,0.26448263]
[1742978010965,1.18840642,633.07,632.59,0.26448263]
[1742978011170,1.18840642,633.06,632.59,0.26448263]
[1742978011371,1.18840642,633.05,632.64,1.18127764]
[1742978011666,1.18840642,633.04,632.64,1.18127764]
[1742978011871,1.18840642,633.03,632.65,0.26448265]
[1742978012170,1.18840642,633.02,632.65,0.26448265]
[1742978012371,1.18840642,633.01,632.65,0.26448265]
[1742978012571,0.426,633.29,632.65,0.26448265]
[1742978012767,1.18824225,633.28,632.64,1.18127764]
[1742978012968,1.18824225,633.27,632.64,1.18127764]
[1742978013168,1.18824225,633.26,632.64,1.18127764]
[1742978013371,1.18824225,633.25,632.64,1.18127764]
[1742978013572,0.426,633.29,632.72,1.18127764]
[1742978013573,1.18824225,633.24,632.72,1.18127764]
[1742978013772,1.18824225,633.23,632.72,1.18127764]
[1742978013968,0.426,633.29,632.72,1.18127764]
[1742978013969,1.18824225,633.22,632.72,1.18127764]
[1742978014172,1.18824225,633.21,632.72,1.18127764]
[1742978014374,1.18824225,633.2,632.72,1.18127764]
[1742978014574,1.18824225,633.19,632.72,1.18127764]
[1742978014770,1.18824225,633.18,632.72,1.18127764]
[1742978014976,1.18824225,633.17,632.72,1.18127764]
[1742978015169,1.18824225,633.16,632.72,1.18127764]
[1742978015373,1.18822068,633.15,632.72,1.18127764]
[1742978015575,1.18822068,633.14,632.72,1.18127764]
[1742978015771,1.18822068,633.13,632.72,1.18127764]
[1742978015976,1.18822068,633.12,632.67,1.18127764]
[1742978016173,1.18822068,633.11,632.67,1.18127764]
[1742978016377,1.18822068,633.1,632.67,1.18127764]
[1742978016577,1.18822068,633.09,632.67,1.18127764]
[1742978016872,1.18822068,633.08,632.67,1.18127764]
[1742978017075,1.18822068,633.07,632.67,1.18127764]
[1742978017374,1.18851517,633.06,632.67,1.18127764]
[1742978017580,1.18851517,633.05,632.61,1.18127764]
[1742978017779,1.18851517,633.04,632.61,1.18127764]
[1742978017975,1.18851517,633.03,632.61,1.18127764]
[1742978018174,1.18851517,633.02,632.61,1.18127764]
[1742978018380,1.18851517,633.01,632.61,1.18127764]
[1742978018580,1.18851517,633.0,632.61,1.18127764]
[1742978018780,1.18851517,632.99,632.61,1.18127764]
[1742978018976,1.18851517,632.98,632.61,1.18127764]
[1742978019278,1.18851517,632.97,632.61,1.18127764]
[1742978019582,1.187,633.2,632.61,1.18127764]
[1742978019783,1.18903684,633.19,632.61,1.18127764]
[1742978019981,1.18903684,633.18,632.61,1.18127764]
[1742978020177,1.18903684,633.17,632.61,1.18127764]
[1742978020377,1.18903684,633.16,632.61,1.18127764]
[1742978020580,1.18903684,633.15,632.61,1.18127764]
[1742978020784,1.18903684,633.14,632.61,1.18127764]
[1742978020983,1.18903684,633.13,632.61,1.18127764]
[1742978021184,1.18903684,633.12,632.61,1.18127764]
[1742978021385,1.1891648,633.11,632.61,1.18127764]
[1742978021584,1.1891648,633.1,632.61,1.18127764]
[1742978021784,1.1891648,633.09,632.64,1.18127764]
[1742978021984,1.1891648,633.08,632.64,1.18127764]
[1742978022179,1.1891648,633.07,632.64,1.18127764]
[1742978022382,1.1891648,633.06,632.64,1.18127764]
[1742978022579,1.1891648,633.05,632.64,1.18127764]
[1742978022784,1.1891648,633.04,632.64,1.18127764]
[1742978022987,1.1891648,633.03,632.64,1.18127764]
[1742978023186,1.1891648,633.02,632.64,1.18127764]
[1742978023386,1.1891648,633.01,632.64,1.18127764]
[1742978023586,1.1891648,633.0,632.64,1.18127764]
[1742978023786,1.1891648,632.99,632.64,1.18127764]
[1742978023985,1.1891648,632.98,632.64,1.18127764]
[1742978024181,1.1891648,632.97,632.64,1.18127764]
[1742978024385,1.1891648,632.96,632.64,1.18127764]
[1742978024689,1.187,633.2,632.62,1.18127764]
[1742978024881,1.18969094,633.19,632.62,1.18127764]
[1742978025088,1.18969094,633.18,632.62,1.18127764]
[1742978025285,1.18969094,633.17,632.62,1.18127764]
[1742978025585,1.18969094,633.16,632.62,1.18127764]
[1742978025786,1.18969094,633.15,632.62,1.18127764]
[1742978025988,1.18969094,633.14,632.62,1.18127764]
[1742978026288,1.18969094,633.13,632.62,1.18127764]
[1742978026488,1.18969094,633.12,632.72,1.18127764]
[1742978026680,1.18969094,633.11,632.72,1.18127764]
[1742978026881,1.18969094,633.1,632.72,1.18127764]
[1742978027090,1.18969094,633.09,632.72,1.18127764]
[1742978027286,1.18969094,633.08,632.72,1.18127764]
[1742978027483,1.18969094,633.07,632.72,1.18127764]
[1742978027686,1.18969094,633.06,632.72,1.18127764]
[1742978027883,1.18969094,633.05,632.72,1.18127764]
[1742978028083,1.18969094,633.04,632.72,1.18127764]
[1742978028281,1.18969094,633.03,632.72,1.18127764]
[1742978028483,1.18969094,633.02,632.72,1.18127764]
[1742978028683,1.18969094,633.01,632.72,1.18127764]
[1742978028987,1.18969094,633.0,632.72,1.18127764]
[1742978029187,1.18969094,632.99,632.72,1.18127764]
[1742978029385,1.19002587,632.98,632.72,1.18127764]
[1742978029589,1.19002587,632.97,632.72,1.18127764]
[1742978029889,1.19002587,632.96,632.72,1.18127764]
[1742978030191,1.19002587,632.95,632.72,1.18127764]
[1742978030387,1.187,633.2,632.72,1.18127764]
[1742978030586,1.19011132,633.19,632.72,1.18127764]
[1742978030790,1.19011132,633.18,632.72,1.18127764]
[1742978031091,1.19011132,633.17,632.72,1.18127764]
[1742978031288,1.19011132,633.16,632.72,1.18127764]
[1742978031490,1.19015202,633.15,632.72,1.18127764]
[1742978031790,1.19015202,633.14,632.75,1.18127764]
[1742978031983,1.19015202,633.13,632.75,1.18127764]
[1742978032187,1.19015202,633.12,632.75,1.18127764]
[1742978032387,1.19015202,633.11,632.75,1.18127764]
[1742978032584,1.19015202,633.1,632.75,1.18127764]
[1742978032886,1.19015202,633.09,632.75,1.18127764]
[1742978033086,1.19015202,633.08,632.75,1.18127764]
[1742978033282,1.19015202,633.07,632.75,1.18127764]
[1742978033485,1.19015202,633.06,632.75,1.18127764]
[1742978033683,1.19015202,633.05,632.75,1.18127764]
[1742978033988,1.19015202,633.04,632.75,1.18127764]
[1742978034189,1.19015202,633.03,632.75,1.18127764]
[1742978034390,1.19015202,633.02,632.75,1.18127764]
[1742978034590,1.19015202,633.01,632.8,1.18127764]
[1742978034786,1.19015202,633.0,632.8,1.18127764]
[1742978034984,1.19015202,632.99,632.8,1.18127764]
[1742978035190,1.19015202,632.98,632.8,1.18127764]
[1742978035390,1.19015202,632.97,632.8,1.18127764]
[1742978035586,1.19015202,632.96,632.8,1.18127764]
[1742978035787,1.19015202,632.95,632.8,1.18127764]
[1742978035990,1.19015202,632.94,632.8,1.18127764]
[1742978036184,1.19015202,632.93,632.8,1.18127764]
[1742978036388,1.19015202,632.92,632.8,1.18127764]
[1742978036589,1.19015202,632.91,632.8,1.18127764]
[1742978036791,1.19015202,632.9,632.78,1.18127764]
[1742978036991,1.19015202,632.89,632.78,1.18127764]
[1742978037191,1.187,633.2,632.78,1.18127764]